[Event "Titled Tuesday Blitz December 06 Early 2022"]
[White "Putnam, Liam"]
[Black "Mika, Tomasz"]
[WhiteFideId "30938279"]
[BlackFideId "1132970"]
[WhiteElo "2082"]
[BlackElo "2179"]
[Result "1/2-1/2"]
[Round "01"]
[TimeControl "180+1"]
[Date "2022.12.07"]
[WhiteClock "0:00:02"]
[BlackClock "0:00:03"]

1. d4 {[%clk 0:02:42]}  d5 {[%clk 0:02:48]} 2. Nc3 {[%clk 0:02:01]}  Nf6 {[%clk 0:02:38]} 3. Bf4 {[%clk 0:01:57]}  e6 {[%clk 0:02:28]} 4. Nb5 {[%clk 0:01:57]}  Na6 {[%clk 0:02:25]} 5. e3 {[%clk 0:01:56]}  c6 {[%clk 0:02:21]} 6. Nc3 {[%clk 0:01:56]}  Nb8 {[%clk 0:02:20]} 7. Bd3 {[%clk 0:01:56]}  Be7 {[%clk 0:02:20]} 8. Nf3 {[%clk 0:01:55]}  O-O {[%clk 0:02:20]} 9. Ne5 {[%clk 0:01:55]}  Nbd7 {[%clk 0:02:20]} 10. Qf3 {[%clk 0:01:55]}  c5 {[%clk 0:02:14]} 11. dxc5 {[%clk 0:01:40]}  Nxc5 {[%clk 0:02:13]} 12. O-O {[%clk 0:01:35]}  Nxd3 {[%clk 0:02:11]} 13. cxd3 {[%clk 0:01:33]}  Nd7 {[%clk 0:01:54]} 14. e4 {[%clk 0:01:26]}  Nxe5 {[%clk 0:01:47]} 15. Bxe5 {[%clk 0:01:27]}  dxe4 {[%clk 0:01:30]} 16. dxe4 {[%clk 0:01:27]}  Bd7 {[%clk 0:01:26]} 17. Rfd1 {[%clk 0:01:25]}  Qe8 {[%clk 0:01:25]} 18. Qg4 {[%clk 0:01:07]}  f6 {[%clk 0:01:12]} 19. Bd6 {[%clk 0:01:06]}  Rd8 {[%clk 0:01:09]} 20. Rd2 {[%clk 0:01:03]}  e5 {[%clk 0:01:06]} 21. Qg3 {[%clk 0:01:00]}  Be6 {[%clk 0:01:03]} 22. Rad1 {[%clk 0:00:57]}  Bxd6 {[%clk 0:00:58]} 23. Rxd6 {[%clk 0:00:58]}  Rxd6 {[%clk 0:00:58]} 24. Rxd6 {[%clk 0:00:59]}  Rf7 {[%clk 0:00:58]} 25. Qd3 {[%clk 0:00:52]}  Rd7 {[%clk 0:00:55]} 26. Qb5 {[%clk 0:00:52]}  Kf7 {[%clk 0:00:49]} 27. Qb4 {[%clk 0:00:43]}  Rxd6 {[%clk 0:00:38]} 28. Qxd6 {[%clk 0:00:44]}  Qd7 {[%clk 0:00:38]} 29. Qb4 {[%clk 0:00:37]}  a6 {[%clk 0:00:37]} 30. h3 {[%clk 0:00:34]}  b5 {[%clk 0:00:36]} 31. Qa5 {[%clk 0:00:31]}  Qc6 {[%clk 0:00:35]} 32. Qb4 {[%clk 0:00:27]}  Qc4 {[%clk 0:00:33]} 33. Qd6 {[%clk 0:00:26]}  b4 {[%clk 0:00:27]} 34. Nd1 {[%clk 0:00:17]}  Qxe4 {[%clk 0:00:22]} 35. Ne3 {[%clk 0:00:17]}  Qb1+ {[%clk 0:00:18]} 36. Kh2 {[%clk 0:00:18]}  Qxb2 {[%clk 0:00:15]} 37. Qxa6 {[%clk 0:00:17]}  Qxf2 {[%clk 0:00:13]} 38. Qa7+ {[%clk 0:00:17]}  Kg6 {[%clk 0:00:12]} 39. Qc5 {[%clk 0:00:12]}  Bf5 {[%clk 0:00:05]} 40. Qc1 {[%clk 0:00:05]}  Be4 {[%clk 0:00:04]} 41. Qg1 {[%clk 0:00:03]}  Qxg1+ {[%clk 0:00:04]} 42. Kxg1 {[%clk 0:00:04]}  Bb1 {[%clk 0:00:04]} 43. Nd5 {[%clk 0:00:05]}  Bxa2 {[%clk 0:00:03]} 44. Nxb4 {[%clk 0:00:06]}  Bf7 {[%clk 0:00:03]} 45. Kf2 {[%clk 0:00:06]}  h6 {[%clk 0:00:04]} 46. Nd3 {[%clk 0:00:07]}  Bd5 {[%clk 0:00:04]} 47. g3 {[%clk 0:00:07]}  Bb7 {[%clk 0:00:04]} 48. Ke3 {[%clk 0:00:07]}  Kf7 {[%clk 0:00:04]} 49. Kd2 {[%clk 0:00:06]}  Bc6 {[%clk 0:00:05]} 50. Ke3 {[%clk 0:00:07]}  Ke6 {[%clk 0:00:05]} 51. Nb4 {[%clk 0:00:07]}  Bb7 {[%clk 0:00:04]} 52. Nd3 {[%clk 0:00:06]}  g5 {[%clk 0:00:04]} 53. Nc5+ {[%clk 0:00:07]}  Kd5 {[%clk 0:00:04]} 54. Nxb7 {[%clk 0:00:08]}  f5 {[%clk 0:00:04]} 55. g4 {[%clk 0:00:04]}  f4+ {[%clk 0:00:04]} 56. Ke2 {[%clk 0:00:03]}  e4 {[%clk 0:00:04]} 57. Nd8 {[%clk 0:00:03]}  Kd4 {[%clk 0:00:04]} 58. Ne6+ {[%clk 0:00:03]}  Ke5 {[%clk 0:00:04]} 59. Nc5 {[%clk 0:00:03]}  Kd4 {[%clk 0:00:02]} 60. Nb3+ {[%clk 0:00:03]}  Ke5 {[%clk 0:00:03]} 61. Nd2 {[%clk 0:00:04]}  Kd4 {[%clk 0:00:03]} 62. Nf1 {[%clk 0:00:04]}  f3+ {[%clk 0:00:02]} 63. Kf2 {[%clk 0:00:03]}  Kd3 {[%clk 0:00:02]} 64. Ne3 {[%clk 0:00:02]}  Kd2 {[%clk 0:00:02]} 65. Nf5 {[%clk 0:00:03]}  Kd3 {[%clk 0:00:03]} 66. Ng3 {[%clk 0:00:03]}  Kd4 {[%clk 0:00:02]} 67. Nf1 {[%clk 0:00:02]}  Kd3 {[%clk 0:00:03]} 68. Nh2 {[%clk 0:00:02]}  Kd4 {[%clk 0:00:03]} 69. Nf1 {[%clk 0:00:02]} 1/2-1/2


[Site "https://www.chess.com"]

[Event "Titled Tuesday Blitz December 06 Early 2022"]
[White "Raahul V S"]
[Black "Sadhwani, Raunak"]
[WhiteFideId "25035525"]
[BlackFideId "35093487"]
[WhiteElo "2202"]
[BlackElo "2657"]
[Result "0-1"]
[Round "01"]
[TimeControl "180+1"]
[Date "2022.12.06"]
[WhiteClock "0:00:02"]
[BlackClock "0:00:06"]

1. c4 {[%clk 0:02:38]}  Nf6 {[%clk 0:01:36]} 2. Nc3 {[%clk 0:02:18]}  c5 {[%clk 0:01:34]} 3. Nf3 {[%clk 0:02:16]}  Nc6 {[%clk 0:01:34]} 4. d4 {[%clk 0:02:16]}  cxd4 {[%clk 0:01:34]} 5. Nxd4 {[%clk 0:02:16]}  g6 {[%clk 0:01:35]} 6. Nc2 {[%clk 0:02:16]}  Bg7 {[%clk 0:01:35]} 7. e4 {[%clk 0:02:16]}  O-O {[%clk 0:01:35]} 8. Be2 {[%clk 0:02:17]}  d6 {[%clk 0:01:35]} 9. O-O {[%clk 0:02:17]}  a5 {[%clk 0:01:35]} 10. Be3 {[%clk 0:02:13]}  a4 {[%clk 0:01:35]} 11. Rc1 {[%clk 0:02:07]}  Qa5 {[%clk 0:01:33]} 12. f3 {[%clk 0:02:05]}  Be6 {[%clk 0:01:28]} 13. Nd5 {[%clk 0:01:41]}  Nd7 {[%clk 0:01:26]} 14. Nd4 {[%clk 0:01:39]}  Bxd4 {[%clk 0:01:16]} 15. Bxd4 {[%clk 0:01:40]}  Bxd5 {[%clk 0:01:16]} 16. cxd5 {[%clk 0:01:36]}  Nxd4 {[%clk 0:01:16]} 17. Qxd4 {[%clk 0:01:37]}  Rfc8 {[%clk 0:01:16]} 18. Rc3 {[%clk 0:01:16]}  Rxc3 {[%clk 0:01:14]} 19. bxc3 {[%clk 0:01:17]}  Rc8 {[%clk 0:01:14]} 20. Rc1 {[%clk 0:01:05]}  Rc7 {[%clk 0:01:05]} 21. Bf1 {[%clk 0:00:59]}  Ne5 {[%clk 0:00:54]} 22. f4 {[%clk 0:00:51]}  Nd7 {[%clk 0:00:53]} 23. Rb1 {[%clk 0:00:48]}  a3 {[%clk 0:00:24]} 24. Rb3 {[%clk 0:00:33]}  Nc5 {[%clk 0:00:22]} 25. Rb5 {[%clk 0:00:31]}  Qa8 {[%clk 0:00:20]} 26. e5 {[%clk 0:00:30]}  Nd7 {[%clk 0:00:19]} 27. Rb3 {[%clk 0:00:23]}  Qa5 {[%clk 0:00:19]} 28. g3 {[%clk 0:00:18]}  b6 {[%clk 0:00:17]} 29. Bh3 {[%clk 0:00:15]}  Nc5 {[%clk 0:00:17]} 30. Rb4 {[%clk 0:00:15]}  Qa7 {[%clk 0:00:15]} 31. Kg2 {[%clk 0:00:13]}  Qb7 {[%clk 0:00:14]} 32. Kg1 {[%clk 0:00:12]}  Qa7 {[%clk 0:00:13]} 33. Bf1 {[%clk 0:00:11]}  Rc8 {[%clk 0:00:10]} 34. Bb5 {[%clk 0:00:11]}  Rd8 {[%clk 0:00:09]} 35. Bc6 {[%clk 0:00:10]}  Qc7 {[%clk 0:00:08]} 36. exd6 {[%clk 0:00:09]}  Rxd6 {[%clk 0:00:07]} 37. Qe3 {[%clk 0:00:09]}  e6 {[%clk 0:00:07]} 38. c4 {[%clk 0:00:08]}  Qa7 {[%clk 0:00:07]} 39. Rb5 {[%clk 0:00:08]}  Rd8 {[%clk 0:00:05]} 40. dxe6 {[%clk 0:00:07]}  Nxe6 {[%clk 0:00:06]} 41. Bd5 {[%clk 0:00:07]}  Nc5 {[%clk 0:00:06]} 42. Rb1 {[%clk 0:00:07]}  Qd7 {[%clk 0:00:06]} 43. Re1 {[%clk 0:00:06]}  Qd6 {[%clk 0:00:05]} 44. Qxa3 {[%clk 0:00:06]}  Qf6 {[%clk 0:00:05]} 45. Qe3 {[%clk 0:00:06]}  h5 {[%clk 0:00:04]} 46. Qe7 {[%clk 0:00:05]}  Kg7 {[%clk 0:00:04]} 47. Qxf6+ {[%clk 0:00:05]}  Kxf6 {[%clk 0:00:05]} 48. Rb1 {[%clk 0:00:06]}  Rd6 {[%clk 0:00:06]} 49. Re1 {[%clk 0:00:05]}  Na4 {[%clk 0:00:06]} 50. Re8 {[%clk 0:00:05]}  Nc3 {[%clk 0:00:06]} 51. Bf3 {[%clk 0:00:04]}  Nxa2 {[%clk 0:00:06]} 52. Rc8 {[%clk 0:00:03]}  Rd3 {[%clk 0:00:05]} 53. Rc6+ {[%clk 0:00:02]}  Kg7 {[%clk 0:00:05]} 54. Bd5 {[%clk 0:00:03]}  Nc3 {[%clk 0:00:02]} 55. Rxb6 {[%clk 0:00:03]}  Rd2 {[%clk 0:00:02]} 56. Rb7 {[%clk 0:00:02]}  Nxd5 {[%clk 0:00:01]} 57. cxd5 {[%clk 0:00:03]}  Rxd5 {[%clk 0:00:02]} 58. Rb2 {[%clk 0:00:03]}  Rd1+ {[%clk 0:00:02]} 59. Kf2 {[%clk 0:00:03]}  Rd6 {[%clk 0:00:03]} 60. Ke2 {[%clk 0:00:03]}  Rf6 {[%clk 0:00:04]} 61. Rd2 {[%clk 0:00:03]}  Rf5 {[%clk 0:00:04]} 62. Ke3 {[%clk 0:00:04]}  f6 {[%clk 0:00:05]} 63. Ke4 {[%clk 0:00:04]}  Ra5 {[%clk 0:00:04]} 64. Rd7+ {[%clk 0:00:04]}  Kh6 {[%clk 0:00:03]} 65. Rd6 {[%clk 0:00:04]}  Ra4+ {[%clk 0:00:03]} 66. Ke3 {[%clk 0:00:04]}  Ra3+ {[%clk 0:00:04]} 67. Rd3 {[%clk 0:00:04]}  Ra2 {[%clk 0:00:04]} 68. Rd2 {[%clk 0:00:04]}  Ra1 {[%clk 0:00:05]} 69. Rd6 {[%clk 0:00:04]}  Ra3+ {[%clk 0:00:04]} 70. Ke2 {[%clk 0:00:03]}  Ra2+ {[%clk 0:00:04]} 71. Rd2 {[%clk 0:00:03]}  Ra6 {[%clk 0:00:03]} 72. Ke3 {[%clk 0:00:03]}  g5 {[%clk 0:00:04]} 73. Kf3 {[%clk 0:00:02]}  g4+ {[%clk 0:00:03]} 74. Ke4 {[%clk 0:00:02]}  Kg6 {[%clk 0:00:04]} 75. Rc2 {[%clk 0:00:01]}  Ra4+ {[%clk 0:00:05]} 76. Ke3 {[%clk 0:00:02]}  Ra5 {[%clk 0:00:06]} 77. Ke4 {[%clk 0:00:02]}  Ra4+ {[%clk 0:00:06]} 78. Ke3 {[%clk 0:00:03]}  Ra1 {[%clk 0:00:05]} 79. Rd2 {[%clk 0:00:03]}  Re1+ {[%clk 0:00:06]} 80. Kf2 {[%clk 0:00:02]}  Rb1 {[%clk 0:00:06]} 81. Re2 {[%clk 0:00:02]}  Kf5 {[%clk 0:00:06]} 82. Rc2 {[%clk 0:00:03]}  Rb5 {[%clk 0:00:06]} 83. Ke3 {[%clk 0:00:03]}  Ra5 {[%clk 0:00:06]} 84. Kd4 {[%clk 0:00:03]}  h4 {[%clk 0:00:06]} 85. Ke3 {[%clk 0:00:02]}  h3 {[%clk 0:00:06]} 86. Kd4 {[%clk 0:00:02]}  Ra3 {[%clk 0:00:06]} 87. Rc5+ {[%clk 0:00:02]}  Kg6 {[%clk 0:00:07]} 88. Rc2 {[%clk 0:00:02]}  Ra4+ {[%clk 0:00:06]} 89. Ke3 {[%clk 0:00:02]}  Ra5 {[%clk 0:00:05]} 90. Ke4 {[%clk 0:00:02]}  Kf7 {[%clk 0:00:06]} 0-1


[Site "https://www.chess.com"]

[Event "Titled Tuesday Blitz December 06 Early 2022"]
[White "Rakhmatullaev, Almas"]
[Black "Najdin, Danil"]
[WhiteFideId "14205793"]
[BlackFideId "4172426"]
[WhiteElo "2221"]
[BlackElo "2245"]
[Result "1-0"]
[Round "01"]
[TimeControl "180+1"]
[Date "2022.12.07"]
[WhiteClock "0:00:16"]
[BlackClock "0:00:03"]

1. e4 {[%clk 0:02:32]}  e5 {[%clk 0:02:52]} 2. Nf3 {[%clk 0:02:01]}  Nc6 {[%clk 0:02:44]} 3. Bb5 {[%clk 0:02:00]}  a6 {[%clk 0:02:42]} 4. Ba4 {[%clk 0:02:00]}  Nf6 {[%clk 0:02:42]} 5. O-O {[%clk 0:02:00]}  b5 {[%clk 0:02:42]} 6. Bb3 {[%clk 0:02:00]}  Bc5 {[%clk 0:02:43]} 7. Nxe5 {[%clk 0:01:57]}  Nxe5 {[%clk 0:02:43]} 8. d4 {[%clk 0:01:57]}  Bxd4 {[%clk 0:02:44]} 9. Qxd4 {[%clk 0:01:57]}  d6 {[%clk 0:02:45]} 10. a4 {[%clk 0:01:50]}  c5 {[%clk 0:02:42]} 11. Qd1 {[%clk 0:01:47]}  c4 {[%clk 0:02:42]} 12. Ba2 {[%clk 0:01:48]}  O-O {[%clk 0:02:40]} 13. Nc3 {[%clk 0:01:44]}  Rb8 {[%clk 0:02:21]} 14. axb5 {[%clk 0:01:44]}  axb5 {[%clk 0:02:21]} 15. Bg5 {[%clk 0:01:40]}  h6 {[%clk 0:02:19]} 16. Bxf6 {[%clk 0:01:40]}  Qxf6 {[%clk 0:02:20]} 17. Nd5 {[%clk 0:01:40]}  Qh4 {[%clk 0:02:14]} 18. f4 {[%clk 0:01:38]}  Ng4 {[%clk 0:02:01]} 19. h3 {[%clk 0:01:38]}  Nf6 {[%clk 0:02:01]} 20. Ne7+ {[%clk 0:01:27]}  Kh8 {[%clk 0:01:58]} 21. Qxd6 {[%clk 0:01:27]}  Bxh3 {[%clk 0:01:48]} 22. Qa3 {[%clk 0:00:43]}  Bd7 {[%clk 0:01:36]} 23. Nd5 {[%clk 0:00:32]}  Nxe4 {[%clk 0:01:29]} 24. Qe7 {[%clk 0:00:24]}  Qxe7 {[%clk 0:01:07]} 25. Nxe7 {[%clk 0:00:25]}  Rfe8 {[%clk 0:01:01]} 26. Nd5 {[%clk 0:00:24]}  Bc6 {[%clk 0:01:01]} 27. Nb4 {[%clk 0:00:24]}  Bb7 {[%clk 0:01:01]} 28. b3 {[%clk 0:00:24]}  c3 {[%clk 0:00:54]} 29. Nd3 {[%clk 0:00:24]}  Ng3 {[%clk 0:00:44]} 30. Rfe1 {[%clk 0:00:24]}  Ne2+ {[%clk 0:00:44]} 31. Kf2 {[%clk 0:00:24]}  Nd4 {[%clk 0:00:45]} 32. b4 {[%clk 0:00:19]}  Be4 {[%clk 0:00:23]} 33. Bxf7 {[%clk 0:00:18]}  Re7 {[%clk 0:00:18]} 34. Bg6 {[%clk 0:00:16]}  Nxc2 {[%clk 0:00:13]} 35. Bxe4 {[%clk 0:00:17]}  Nxa1 {[%clk 0:00:11]} 36. Ne5 {[%clk 0:00:17]}  Rxe5 {[%clk 0:00:08]} 37. fxe5 {[%clk 0:00:16]}  Nb3 {[%clk 0:00:09]} 38. e6 {[%clk 0:00:16]}  Kg8 {[%clk 0:00:06]} 39. e7 {[%clk 0:00:16]}  Nd4 {[%clk 0:00:04]} 40. Bd5+ {[%clk 0:00:14]}  Kh7 {[%clk 0:00:04]} 41. e8=Q {[%clk 0:00:15]}  Rxe8 {[%clk 0:00:02]} 42. Rxe8 {[%clk 0:00:16]}  c2 {[%clk 0:00:03]} 43. Be4+ {[%clk 0:00:16]}  g6 {[%clk 0:00:03]} 44. Rc8 {[%clk 0:00:16]} 1-0


[Site "https://www.chess.com"]

[Event "Titled Tuesday Blitz December 06 Early 2022"]
[White "Ramirez Vido, Robert Yorisan"]
[Black "Darini, Pouria"]
[WhiteFideId "3513823"]
[BlackFideId "12502200"]
[WhiteElo "2366"]
[BlackElo "2482"]
[Result "1/2-1/2"]
[Round "01"]
[TimeControl "180+1"]
[Date "2022.12.07"]
[WhiteClock "0:00:06"]
[BlackClock "0:00:25"]

1. f4 {[%clk 0:02:34]}  d5 {[%clk 0:02:52]} 2. Nf3 {[%clk 0:02:27]}  Bg4 {[%clk 0:02:47]} 3. e3 {[%clk 0:02:20]}  Nd7 {[%clk 0:02:36]} 4. Be2 {[%clk 0:02:13]}  Ngf6 {[%clk 0:02:32]} 5. O-O {[%clk 0:02:06]}  Bxf3 {[%clk 0:02:24]} 6. Bxf3 {[%clk 0:02:05]}  e5 {[%clk 0:02:25]} 7. b3 {[%clk 0:02:03]}  Bd6 {[%clk 0:02:24]} 8. g3 {[%clk 0:01:50]}  Qe7 {[%clk 0:02:22]} 9. Bb2 {[%clk 0:01:49]}  O-O-O {[%clk 0:02:22]} 10. c4 {[%clk 0:01:45]}  dxc4 {[%clk 0:01:55]} 11. bxc4 {[%clk 0:01:42]}  e4 {[%clk 0:01:55]} 12. Bg2 {[%clk 0:01:39]}  Nc5 {[%clk 0:01:55]} 13. Bd4 {[%clk 0:01:26]}  c6 {[%clk 0:01:56]} 14. Nc3 {[%clk 0:01:19]}  Rhe8 {[%clk 0:01:55]} 15. Rb1 {[%clk 0:01:11]}  Qc7 {[%clk 0:01:55]} 16. Bxc5 {[%clk 0:01:03]}  Bxc5 {[%clk 0:01:55]} 17. Qc2 {[%clk 0:00:56]}  Ng4 {[%clk 0:01:32]} 18. Nxe4 {[%clk 0:00:32]}  Bxe3+ {[%clk 0:01:04]} 19. dxe3 {[%clk 0:00:32]}  Nxe3 {[%clk 0:01:05]} 20. Qa4 {[%clk 0:00:16]}  Nxg2 {[%clk 0:01:00]} 21. Kxg2 {[%clk 0:00:11]}  Rxe4 {[%clk 0:01:01]} 22. Qxa7 {[%clk 0:00:11]}  Rd2+ {[%clk 0:01:00]} 23. Rf2 {[%clk 0:00:11]}  Rxf2+ {[%clk 0:01:00]} 24. Kxf2 {[%clk 0:00:12]}  Rxc4 {[%clk 0:00:52]} 25. Rd1 {[%clk 0:00:06]}  Rc2+ {[%clk 0:00:50]} 26. Kg1 {[%clk 0:00:05]}  Qe7 {[%clk 0:00:23]} 27. Qa8+ {[%clk 0:00:04]}  Kc7 {[%clk 0:00:24]} 28. Qa5+ {[%clk 0:00:04]}  Kc8 {[%clk 0:00:25]} 29. Qa8+ {[%clk 0:00:05]}  Kc7 {[%clk 0:00:25]} 30. Qa5+ {[%clk 0:00:05]}  Kc8 {[%clk 0:00:25]} 31. Qa8+ {[%clk 0:00:06]} 1/2-1/2


[Site "https://www.chess.com"]

[Event "Titled Tuesday Blitz December 06 Early 2022"]
[White "Silva, Kaua Marques"]
[Black "Wong, Yinn Long"]
[WhiteFideId "22701168"]
[BlackFideId "5707684"]
[WhiteElo "2083"]
[BlackElo "2271"]
[Result "0-1"]
[Round "01"]
[TimeControl "180+1"]
[Date "2022.12.07"]
[WhiteClock "0:00:14"]
[BlackClock "0:00:51"]

1. e4 {[%clk 0:02:34]}  c5 {[%clk 0:02:26]} 2. Nf3 {[%clk 0:02:19]}  Nc6 {[%clk 0:02:22]} 3. d4 {[%clk 0:02:12]}  cxd4 {[%clk 0:02:19]} 4. Nxd4 {[%clk 0:02:08]}  Qb6 {[%clk 0:02:18]} 5. Nb3 {[%clk 0:02:07]}  Nf6 {[%clk 0:02:16]} 6. Nc3 {[%clk 0:02:08]}  e6 {[%clk 0:02:16]} 7. Be2 {[%clk 0:02:09]}  a6 {[%clk 0:02:16]} 8. O-O {[%clk 0:02:09]}  Qc7 {[%clk 0:02:15]} 9. Kh1 {[%clk 0:02:10]}  b5 {[%clk 0:02:16]} 10. f4 {[%clk 0:02:10]}  b4 {[%clk 0:02:16]} 11. Na4 {[%clk 0:02:08]}  Nxe4 {[%clk 0:02:16]} 12. Bf3 {[%clk 0:02:07]}  Nf6 {[%clk 0:02:15]} 13. f5 {[%clk 0:02:07]}  Be7 {[%clk 0:02:13]} 14. Bf4 {[%clk 0:02:03]}  e5 {[%clk 0:02:10]} 15. Bg3 {[%clk 0:01:42]}  d6 {[%clk 0:02:06]} 16. c3 {[%clk 0:01:34]}  a5 {[%clk 0:02:03]} 17. Rc1 {[%clk 0:01:32]}  Bb7 {[%clk 0:01:57]} 18. Bf2 {[%clk 0:01:24]}  O-O {[%clk 0:01:55]} 19. Nb6 {[%clk 0:01:23]}  Ra6 {[%clk 0:01:54]} 20. cxb4 {[%clk 0:01:22]}  axb4 {[%clk 0:01:49]} 21. Nd5 {[%clk 0:01:15]}  Nxd5 {[%clk 0:01:49]} 22. Bxd5 {[%clk 0:01:13]}  Qd7 {[%clk 0:01:49]} 23. Be1 {[%clk 0:01:09]}  Bg5 {[%clk 0:01:46]} 24. Rc4 {[%clk 0:01:01]}  Rxa2 {[%clk 0:01:35]} 25. h4 {[%clk 0:00:50]}  Bf6 {[%clk 0:01:29]} 26. Qf3 {[%clk 0:00:47]}  e4 {[%clk 0:01:11]} 27. Qxe4 {[%clk 0:00:46]}  Re8 {[%clk 0:01:01]} 28. Qf3 {[%clk 0:00:37]}  Ne5 {[%clk 0:01:01]} 29. Qg3 {[%clk 0:00:19]}  Bxd5 {[%clk 0:00:59]} 30. Rxb4 {[%clk 0:00:16]}  Nc6 {[%clk 0:00:52]} 31. Rb5 {[%clk 0:00:14]}  Bc4 {[%clk 0:00:51]} 0-1


[Site "https://www.chess.com"]

[Event "Titled Tuesday Blitz December 06 Early 2022"]
[White "Sjugirov, Sanan"]
[Black "Stijve, Theo"]
[WhiteFideId "4189302"]
[BlackFideId "1331132"]
[WhiteElo "2613"]
[BlackElo "2256"]
[Result "1-0"]
[Round "01"]
[TimeControl "180+1"]
[Date "2022.12.06"]
[WhiteClock "0:01:28"]
[BlackClock "0:00:16"]

1. e4 {[%clk 0:02:53]}  c5 {[%clk 0:02:49]} 2. Nf3 {[%clk 0:02:45]}  e6 {[%clk 0:02:39]} 3. d3 {[%clk 0:02:39]}  d5 {[%clk 0:02:13]} 4. Qe2 {[%clk 0:02:23]}  Nc6 {[%clk 0:02:06]} 5. g3 {[%clk 0:02:22]}  Be7 {[%clk 0:01:56]} 6. Bg2 {[%clk 0:02:22]}  Nf6 {[%clk 0:01:57]} 7. O-O {[%clk 0:02:22]}  O-O {[%clk 0:01:55]} 8. e5 {[%clk 0:02:22]}  Nd7 {[%clk 0:01:55]} 9. c4 {[%clk 0:02:23]}  b6 {[%clk 0:01:41]} 10. Bf4 {[%clk 0:02:20]}  Bb7 {[%clk 0:01:39]} 11. Nc3 {[%clk 0:02:19]}  d4 {[%clk 0:01:29]} 12. Ne4 {[%clk 0:02:16]}  h6 {[%clk 0:01:24]} 13. h4 {[%clk 0:02:16]}  f5 {[%clk 0:01:10]} 14. exf6 {[%clk 0:02:13]}  Nxf6 {[%clk 0:01:05]} 15. Nxf6+ {[%clk 0:02:11]}  Rxf6 {[%clk 0:01:06]} 16. Ne5 {[%clk 0:02:09]}  Rc8 {[%clk 0:01:00]} 17. Ng4 {[%clk 0:02:06]}  Rxf4 {[%clk 0:00:47]} 18. Qxe6+ {[%clk 0:01:56]}  Rf7 {[%clk 0:00:43]} 19. Bd5 {[%clk 0:01:57]}  Qe8 {[%clk 0:00:37]} 20. Nxh6+ {[%clk 0:01:44]}  gxh6 {[%clk 0:00:30]} 21. Qg6+ {[%clk 0:01:44]}  Kh8 {[%clk 0:00:27]} 22. Bxf7 {[%clk 0:01:43]}  Qf8 {[%clk 0:00:27]} 23. Rae1 {[%clk 0:01:41]}  Rd8 {[%clk 0:00:20]} 24. Re6 {[%clk 0:01:32]}  Qg7 {[%clk 0:00:20]} 25. Qh5 {[%clk 0:01:28]}  Rf8 {[%clk 0:00:16]} 26. Rxh6+ {[%clk 0:01:28]} 1-0


[Site "https://www.chess.com"]

[Event "Titled Tuesday Blitz December 06 Early 2022"]
[White "Skibbe, Willi"]
[Black "Piesik, Piotr"]
[WhiteFideId "4682190"]
[BlackFideId "1136194"]
[WhiteElo "2361"]
[BlackElo "2316"]
[Result "0-1"]
[Round "01"]
[TimeControl "180+1"]
[Date "2022.12.07"]
[WhiteClock "0:00:59"]
[BlackClock "0:00:18"]

1. c4 {[%clk 0:02:46]}  g6 {[%clk 0:02:50]} 2. d4 {[%clk 0:02:39]}  Bg7 {[%clk 0:02:42]} 3. e4 {[%clk 0:02:34]}  d6 {[%clk 0:02:33]} 4. Nc3 {[%clk 0:02:29]}  Nc6 {[%clk 0:02:27]} 5. Nge2 {[%clk 0:02:26]}  Nf6 {[%clk 0:02:21]} 6. f3 {[%clk 0:02:20]}  O-O {[%clk 0:02:19]} 7. Be3 {[%clk 0:02:20]}  e5 {[%clk 0:02:17]} 8. d5 {[%clk 0:02:19]}  Ne7 {[%clk 0:02:13]} 9. Qd2 {[%clk 0:02:19]}  Nd7 {[%clk 0:02:11]} 10. Nc1 {[%clk 0:02:18]}  f5 {[%clk 0:02:10]} 11. Nd3 {[%clk 0:02:17]}  Nf6 {[%clk 0:02:03]} 12. O-O-O {[%clk 0:02:14]}  fxe4 {[%clk 0:02:01]} 13. Nxe4 {[%clk 0:02:10]}  Nf5 {[%clk 0:02:00]} 14. Bf2 {[%clk 0:02:03]}  Qe8 {[%clk 0:01:49]} 15. g4 {[%clk 0:01:57]}  Nxe4 {[%clk 0:01:47]} 16. fxe4 {[%clk 0:01:55]}  Nd4 {[%clk 0:01:48]} 17. h3 {[%clk 0:01:50]}  Bd7 {[%clk 0:01:38]} 18. Be3 {[%clk 0:01:50]}  c6 {[%clk 0:01:28]} 19. dxc6 {[%clk 0:01:45]}  Bxc6 {[%clk 0:01:22]} 20. Bg2 {[%clk 0:01:43]}  Rc8 {[%clk 0:01:21]} 21. Kb1 {[%clk 0:01:43]}  Nf3 {[%clk 0:01:18]} 22. Bxf3 {[%clk 0:01:35]}  Rxf3 {[%clk 0:01:19]} 23. Nf2 {[%clk 0:01:27]}  Rxf2 {[%clk 0:01:12]} 24. Qxf2 {[%clk 0:01:25]}  Bxe4+ {[%clk 0:01:12]} 25. Ka1 {[%clk 0:01:26]}  Bxh1 {[%clk 0:01:12]} 26. Rxh1 {[%clk 0:01:25]}  Rxc4 {[%clk 0:01:12]} 27. Bxa7 {[%clk 0:01:25]}  e4 {[%clk 0:01:09]} 28. Rd1 {[%clk 0:01:25]}  Qc6 {[%clk 0:00:53]} 29. Kb1 {[%clk 0:01:23]}  Rb4 {[%clk 0:00:28]} 30. Bd4 {[%clk 0:01:22]}  Bxd4 {[%clk 0:00:25]} 31. Rxd4 {[%clk 0:01:23]}  Qc5 {[%clk 0:00:22]} 32. Qf6 {[%clk 0:01:10]}  Qxd4 {[%clk 0:00:20]} 33. Qd8+ {[%clk 0:01:10]}  Kf7 {[%clk 0:00:19]} 34. Qd7+ {[%clk 0:01:10]}  Kf6 {[%clk 0:00:19]} 35. Qd8+ {[%clk 0:01:09]}  Ke5 {[%clk 0:00:18]} 36. Qe7+ {[%clk 0:01:09]}  Kf4 {[%clk 0:00:18]} 37. Qf8+ {[%clk 0:00:59]}  Kg3 {[%clk 0:00:18]} 0-1


[Site "https://www.chess.com"]